[Event "*** Titled Tuesday Blitz"]
[Site "Chess.com"]
[Date "2021.04.06"]
[Round "6"]
[White "anasta10"]
[Black "Vugar_Manafov"]
[Result "1-0"]
[WhiteElo "2539"]
[BlackElo "2669"]
[TimeControl "180+1"]
[EndTime "11:08:40 PDT"]
[Termination "anasta10 won by checkmate"]

1. d4 {[%clk 0:02:59.2]} 1... Nf6 {[%clk 0:02:59.8]} 2. c4 {[%clk 0:02:56.7]}
2... e6 {[%clk 0:03:00.1]} 3. Nc3 {[%clk 0:02:55.3]} 3... Bb4 {[%clk 0:03:00.2]}
4. Nf3 {[%clk 0:02:51.9]} 4... O-O {[%clk 0:03:00]} 5. g3 {[%clk 0:02:49.1]}
5... Ne4 {[%clk 0:02:49.1]} 6. Qc2 {[%clk 0:02:47.6]} 6... f5 {[%clk 0:02:47.8]}
7. Bd2 {[%clk 0:02:45.5]} 7... Nxd2 {[%clk 0:02:46.1]} 8. Nxd2 {[%clk
0:02:45.6]} 8... Nc6 {[%clk 0:02:44.5]} 9. e3 {[%clk 0:02:45.4]} 9... b6 {[%clk
0:01:55.7]} 10. Bg2 {[%clk 0:02:43.6]} 10... Bb7 {[%clk 0:01:55.9]} 11. O-O
{[%clk 0:02:43.2]} 11... Qf6 {[%clk 0:01:54.9]} 12. a3 {[%clk 0:02:41.1]} 12...
Bxc3 {[%clk 0:01:48.5]} 13. Qxc3 {[%clk 0:02:42]} 13... Nd8 {[%clk 0:01:48.5]}
14. b4 {[%clk 0:02:34.6]} 14... Bxg2 {[%clk 0:01:47.9]} 15. Kxg2 {[%clk
0:02:35.5]} 15... Nf7 {[%clk 0:01:47.8]} 16. Rac1 {[%clk 0:02:31.9]} 16... a5
{[%clk 0:01:44.5]} 17. c5 {[%clk 0:02:30.7]} 17... axb4 {[%clk 0:01:44.1]} 18.
axb4 {[%clk 0:02:31.6]} 18... Ra2 {[%clk 0:01:29.5]} 19. Ra1 {[%clk 0:02:22.2]}
19... Rfa8 {[%clk 0:01:02.6]} 20. Rxa2 {[%clk 0:02:20.9]} 20... Rxa2 {[%clk
0:01:03.5]} 21. Ra1 {[%clk 0:02:21.3]} 21... Rxa1 {[%clk 0:01:02.5]} 22. Qxa1
{[%clk 0:02:22.2]} 22... Qd8 {[%clk 0:01:01]} 23. Qa7 {[%clk 0:02:00.6]} 23...
b5 {[%clk 0:00:37.7]} 24. Nf3 {[%clk 0:01:42.4]} 24... c6 {[%clk 0:00:35.2]} 25.
h4 {[%clk 0:01:41]} 25... g6 {[%clk 0:00:33.4]} 26. Ne1 {[%clk 0:01:28.6]} 26...
h6 {[%clk 0:00:31.4]} 27. f4 {[%clk 0:01:23.8]} 27... g5 {[%clk 0:00:27.2]} 28.
hxg5 {[%clk 0:01:23.6]} 28... hxg5 {[%clk 0:00:28.1]} 29. Nd3 {[%clk 0:01:20.6]}
29... d6 {[%clk 0:00:21.4]} 30. fxg5 {[%clk 0:00:44.5]} 30... dxc5 {[%clk
0:00:16.9]} 31. Qxc5 {[%clk 0:00:44.4]} 31... Qxg5 {[%clk 0:00:11.4]} 32. Nf4
{[%clk 0:00:44.2]} 32... Qd8 {[%clk 0:00:05.4]} 33. Qxc6 {[%clk 0:00:42.3]}
33... Qe7 {[%clk 0:00:03.6]} 34. Qxb5 {[%clk 0:00:39.7]} 34... Ng5 {[%clk
0:00:02.8]} 35. Qb8+ {[%clk 0:00:34.9]} 35... Kg7 {[%clk 0:00:03.3]} 36. Qe5+
{[%clk 0:00:20.5]} 36... Kg8 {[%clk 0:00:03.2]} 37. d5 {[%clk 0:00:16.2]} 37...
Qb7 {[%clk 0:00:03]} 38. Nxe6 {[%clk 0:00:15]} 38... Ne4 {[%clk 0:00:02.9]} 39.
Qxf5 {[%clk 0:00:12.3]} 39... Qxb4 {[%clk 0:00:01.9]} 40. Qg6+ {[%clk
0:00:08.1]} 40... Kh8 {[%clk 0:00:01.9]} 41. Qg7# {[%clk 0:00:08.5]} 1-0

[Event "*** Titled Tuesday Blitz"]
[Site "Chess.com"]
[Date "2021.04.06"]
[Round "6"]
[White "Flopezin"]
[Black "anon481216"]
[Result "0-1"]
[WhiteElo "2339"]
[BlackElo "2503"]
[TimeControl "180+1"]
[EndTime "11:08:40 PDT"]
[Termination "anon481216 won by resignation"]

1. c4 {[%clk 0:03:00.9]} 1... c5 {[%clk 0:02:58]} 2. Nf3 {[%clk 0:03:00.1]} 2...
Nc6 {[%clk 0:02:58.1]} 3. d4 {[%clk 0:02:59.6]} 3... cxd4 {[%clk 0:02:57.7]} 4.
Nxd4 {[%clk 0:03:00.5]} 4... Nf6 {[%clk 0:02:56.7]} 5. Nc3 {[%clk 0:03:00.1]}
5... e6 {[%clk 0:02:56.6]} 6. e3 {[%clk 0:02:59.4]} 6... a6 {[%clk 0:02:43.8]}
7. Be2 {[%clk 0:02:59.6]} 7... Be7 {[%clk 0:02:38.3]} 8. O-O {[%clk 0:02:59.9]}
8... O-O {[%clk 0:02:38.3]} 9. b3 {[%clk 0:03:00.5]} 9... d5 {[%clk 0:02:37.1]}
10. cxd5 {[%clk 0:03:00.2]} 10... exd5 {[%clk 0:02:35.8]} 11. Bb2 {[%clk
0:02:59.3]} 11... Re8 {[%clk 0:02:26.3]} 12. Bf3 {[%clk 0:02:59.6]} 12... Bf8
{[%clk 0:02:16.9]} 13. Rc1 {[%clk 0:02:59.1]} 13... Ne4 {[%clk 0:02:16.3]} 14.
Nxc6 {[%clk 0:02:36.6]} 14... bxc6 {[%clk 0:02:15.9]} 15. Nxe4 {[%clk 0:02:36]}
15... dxe4 {[%clk 0:02:15.5]} 16. Qxd8 {[%clk 0:02:36.9]} 16... Rxd8 {[%clk
0:02:15.4]} 17. Bxe4 {[%clk 0:02:37.8]} 17... Rd2 {[%clk 0:02:13.6]} 18. Rc2
{[%clk 0:02:27.1]} 18... Rxc2 {[%clk 0:02:12.2]} 19. Bxc2 {[%clk 0:02:28]} 19...
Be6 {[%clk 0:02:04.9]} 20. Rd1 {[%clk 0:02:28.1]} 20... a5 {[%clk 0:02:03.7]}
21. Be4 {[%clk 0:02:27.6]} 21... Rc8 {[%clk 0:01:54]} 22. Rc1 {[%clk 0:02:26.3]}
22... c5 {[%clk 0:01:53.6]} 23. Bc3 {[%clk 0:02:14.8]} 23... Rc7 {[%clk
0:01:35.7]} 24. g3 {[%clk 0:02:02.3]} 24... f6 {[%clk 0:01:31]} 25. Rc2 {[%clk
0:01:42.7]} 25... Ra7 {[%clk 0:01:30.6]} 26. Bc6 {[%clk 0:01:35.4]} 26... Kf7
{[%clk 0:01:27.5]} 27. Bb2 {[%clk 0:01:35.7]} 27... Rc7 {[%clk 0:01:23.3]} 28.
Bf3 {[%clk 0:01:30.8]} 28... c4 {[%clk 0:01:19.3]} 29. bxc4 {[%clk 0:01:26.9]}
29... Rxc4 {[%clk 0:01:17.2]} 30. Rxc4 {[%clk 0:01:09.5]} 30... Bxc4 {[%clk
0:01:17.7]} 31. a4 {[%clk 0:01:10.4]} 31... Bb3 {[%clk 0:01:14.8]} 32. Bc6
{[%clk 0:01:10.1]} 32... Bb4 {[%clk 0:01:15]} 33. Kf1 {[%clk 0:01:09.9]} 33...
Ke6 {[%clk 0:01:14.3]} 34. Ke2 {[%clk 0:01:10.4]} 34... Bc2 {[%clk 0:01:10.1]}
35. f3 {[%clk 0:00:59.8]} 35... h6 {[%clk 0:01:06.2]} 36. e4 {[%clk 0:00:59.7]}
36... Kd6 {[%clk 0:01:05.9]} 37. Bb5 {[%clk 0:00:58.5]} 37... Ke6 {[%clk
0:00:55.2]} 38. Ke3 {[%clk 0:00:58.9]} 38... Bc5+ {[%clk 0:00:51.9]} 39. Bd4
{[%clk 0:00:57.8]} 39... Bb4 {[%clk 0:00:51.6]} 40. Bb6 {[%clk 0:00:58.2]} 40...
Bb3 {[%clk 0:00:49.7]} 41. Kd4 {[%clk 0:00:58.2]} 41... Kd6 {[%clk 0:00:45.7]}
42. Bc4 {[%clk 0:00:57.2]} 42... Bxa4 {[%clk 0:00:44.6]} 43. f4 {[%clk
0:00:57.2]} 43... Bc6 {[%clk 0:00:41.9]} 44. e5+ {[%clk 0:00:56.7]} 44... fxe5+
{[%clk 0:00:42.1]} 45. fxe5+ {[%clk 0:00:57.6]} 45... Ke7 {[%clk 0:00:41.1]} 46.
Bc5+ {[%clk 0:00:55.7]} 46... Bxc5+ {[%clk 0:00:40.9]} 47. Kxc5 {[%clk
0:00:56.6]} 47... Bd7 {[%clk 0:00:38.9]} 48. Kd4 {[%clk 0:00:37.4]} 48... Be6
{[%clk 0:00:37.9]} 49. Bb5 {[%clk 0:00:35.4]} 49... Bb3 {[%clk 0:00:37.8]} 50.
Kc3 {[%clk 0:00:33.8]} 50... a4 {[%clk 0:00:37.8]} 51. Kb4 {[%clk 0:00:33.8]}
51... Ke6 {[%clk 0:00:37.8]} 52. Bxa4 {[%clk 0:00:24.2]} 52... Bxa4 {[%clk
0:00:38.1]} 53. Kxa4 {[%clk 0:00:25.1]} 53... Kxe5 {[%clk 0:00:38.7]} 54. Kb5
{[%clk 0:00:26]} 54... Ke4 {[%clk 0:00:31.5]} 55. Kc5 {[%clk 0:00:26.2]} 55...
Kf3 {[%clk 0:00:31.4]} 56. Kd5 {[%clk 0:00:26.7]} 56... Kg2 {[%clk 0:00:30.3]}
57. Ke5 {[%clk 0:00:26.9]} 57... Kxh2 {[%clk 0:00:30.4]} 58. g4 {[%clk
0:00:26.9]} 58... Kg3 {[%clk 0:00:29.6]} 59. Kf5 {[%clk 0:00:27.2]} 59... Kh4
{[%clk 0:00:27.4]} 60. Kf4 {[%clk 0:00:27]} 60... g5+ {[%clk 0:00:26.6]} 61. Kf3
{[%clk 0:00:24.9]} 61... Kh3 {[%clk 0:00:26.7]} 0-1

[Event "*** Titled Tuesday Blitz"]
[Site "Chess.com"]
[Date "2021.04.06"]
[Round "6"]
[White "tteshan"]
[Black "MerryPoppies"]
[Result "1-0"]
[WhiteElo "2313"]
[BlackElo "2144"]
[TimeControl "180+1"]
[EndTime "11:08:42 PDT"]
[Termination "tteshan won on time"]

1. e4 {[%clk 0:02:37.7]} 1... e5 {[%clk 0:02:57.4]} 2. Nf3 {[%clk 0:02:37.8]}
2... Nc6 {[%clk 0:02:57.1]} 3. Bb5 {[%clk 0:02:38.2]} 3... a6 {[%clk 0:02:46.3]}
4. Ba4 {[%clk 0:02:38.2]} 4... Nf6 {[%clk 0:02:44.6]} 5. O-O {[%clk 0:02:37.4]}
5... b5 {[%clk 0:02:32.9]} 6. Bb3 {[%clk 0:02:33.7]} 6... Be7 {[%clk 0:02:26.1]}
7. Re1 {[%clk 0:02:28.6]} 7... O-O {[%clk 0:02:24.2]} 8. c3 {[%clk 0:02:29]}
8... d5 {[%clk 0:02:22.8]} 9. exd5 {[%clk 0:02:27.7]} 9... Nxd5 {[%clk
0:02:22.8]} 10. Nxe5 {[%clk 0:02:27.5]} 10... Nxe5 {[%clk 0:02:23.3]} 11. Rxe5
{[%clk 0:02:28.2]} 11... c6 {[%clk 0:02:24.1]} 12. d4 {[%clk 0:02:28.7]} 12...
Bd6 {[%clk 0:02:24]} 13. Re1 {[%clk 0:02:28.9]} 13... Qh4 {[%clk 0:02:23.8]} 14.
g3 {[%clk 0:02:28.4]} 14... Qh3 {[%clk 0:02:17.1]} 15. Be3 {[%clk 0:02:24.9]}
15... f5 {[%clk 0:02:07.1]} 16. Bxd5+ {[%clk 0:02:14.8]} 16... cxd5 {[%clk
0:02:06.8]} 17. f4 {[%clk 0:02:15.2]} 17... g5 {[%clk 0:01:51.6]} 18. Qf3 {[%clk
0:02:02.7]} 18... Bb7 {[%clk 0:01:43.8]} 19. Nd2 {[%clk 0:02:00.5]} 19... Rae8
{[%clk 0:01:40.3]} 20. a4 {[%clk 0:01:26.7]} 20... g4 {[%clk 0:01:01.3]} 21. Qg2
{[%clk 0:01:22]} 21... Qxg2+ {[%clk 0:00:43.8]} 22. Kxg2 {[%clk 0:01:22.9]}
22... b4 {[%clk 0:00:44.1]} 23. Bf2 {[%clk 0:01:05.6]} 23... Bc6 {[%clk
0:00:40.8]} 24. Nb3 {[%clk 0:00:38.2]} 24... Rxe1 {[%clk 0:00:37.1]} 25. Bxe1
{[%clk 0:00:39.1]} 25... bxc3 {[%clk 0:00:20.4]} 26. Bxc3 {[%clk 0:00:40]} 26...
Rb8 {[%clk 0:00:20.2]} 27. Nc1 {[%clk 0:00:31.3]} 27... Bd7 {[%clk 0:00:19.3]}
28. Nd3 {[%clk 0:00:30.6]} 28... Kg7 {[%clk 0:00:16.7]} 29. a5 {[%clk
0:00:25.7]} 29... Bb5 {[%clk 0:00:16.2]} 30. Ne5 {[%clk 0:00:24.8]} 30... Bxe5
{[%clk 0:00:14]} 31. dxe5 {[%clk 0:00:24.6]} 31... Kf7 {[%clk 0:00:14.5]} 32.
Rd1 {[%clk 0:00:23.9]} 32... Ke6 {[%clk 0:00:14.9]} 33. h3 {[%clk 0:00:21.2]}
33... h5 {[%clk 0:00:13.9]} 34. hxg4 {[%clk 0:00:21.3]} 34... hxg4 {[%clk
0:00:14]} 35. Rh1 {[%clk 0:00:21.2]} 35... Bc4 {[%clk 0:00:12.1]} 36. Rh6+
{[%clk 0:00:21.1]} 36... Ke7 {[%clk 0:00:11.7]} 37. Rf6 {[%clk 0:00:19.4]} 37...
Bd3 {[%clk 0:00:10.7]} 38. e6 {[%clk 0:00:16.4]} 38... Rc8 {[%clk 0:00:07]} 39.
Rg6 {[%clk 0:00:15.1]} 39... d4 {[%clk 0:00:05.5]} 40. Bb4+ {[%clk 0:00:14]}
40... Kd8 {[%clk 0:00:03.7]} 41. Rg8+ {[%clk 0:00:12.9]} 41... Kc7 {[%clk
0:00:03.5]} 42. Bd6+ {[%clk 0:00:08.6]} 42... Kb7 {[%clk 0:00:02]} 43. Rg7+
{[%clk 0:00:08.6]} 43... Kc6 {[%clk 0:00:01.9]} 44. Ba3 {[%clk 0:00:06.6]} 1-0

[Event "*** Titled Tuesday Blitz"]
[Site "Chess.com"]
[Date "2021.04.06"]
[Round "6"]
[White "SilviusTiberius"]
[Black "gmgamil"]
[Result "1-0"]
[WhiteElo "2628"]
[BlackElo "2802"]
[TimeControl "180+1"]
[EndTime "11:08:43 PDT"]
[Termination "SilviusTiberius won by checkmate"]

1. e4 {[%clk 0:03:00.9]} 1... e5 {[%clk 0:03:00]} 2. Nf3 {[%clk 0:03:00.4]} 2...
d6 {[%clk 0:03:00.4]} 3. d4 {[%clk 0:02:58.8]} 3... Qe7 {[%clk 0:03:01]} 4. Nc3
{[%clk 0:02:58.5]} 4... c6 {[%clk 0:03:01.5]} 5. Bc4 {[%clk 0:02:54.5]} 5... h6
{[%clk 0:03:01.1]} 6. O-O {[%clk 0:02:53]} 6... Nf6 {[%clk 0:03:01.5]} 7. Re1
{[%clk 0:02:52.2]} 7... Bg4 {[%clk 0:03:00.9]} 8. dxe5 {[%clk 0:02:48.3]} 8...
dxe5 {[%clk 0:03:01.8]} 9. h3 {[%clk 0:02:48.7]} 9... Bh5 {[%clk 0:03:02.1]} 10.
g4 {[%clk 0:02:43.1]} 10... Bg6 {[%clk 0:03:02.2]} 11. Nh4 {[%clk 0:02:41.9]}
11... Bh7 {[%clk 0:03:02.5]} 12. Nf5 {[%clk 0:02:35.9]} 12... Qc7 {[%clk
0:03:02.5]} 13. Qf3 {[%clk 0:02:29]} 13... Nbd7 {[%clk 0:03:01.1]} 14. a4 {[%clk
0:02:24.4]} 14... a5 {[%clk 0:03:00.5]} 15. h4 {[%clk 0:02:11.7]} 15... Bg8
{[%clk 0:02:54.7]} 16. g5 {[%clk 0:01:54.3]} 16... hxg5 {[%clk 0:02:55.6]} 17.
Bxg5 {[%clk 0:01:52.9]} 17... O-O-O {[%clk 0:02:54.9]} 18. Rad1 {[%clk
0:01:41.6]} 18... Re8 {[%clk 0:02:55.1]} 19. Re2 {[%clk 0:01:38.5]} 19... Nh7
{[%clk 0:01:58.6]} 20. Be3 {[%clk 0:01:25.2]} 20... Nb6 {[%clk 0:01:04.3]} 21.
Bb3 {[%clk 0:01:12.4]} 21... f6 {[%clk 0:01:02.8]} 22. Red2 {[%clk 0:00:59.4]}
22... Bxb3 {[%clk 0:00:52.9]} 23. cxb3 {[%clk 0:00:57.6]} 23... g6 {[%clk
0:00:53]} 24. Nd6+ {[%clk 0:00:39.8]} 24... Bxd6 {[%clk 0:00:53.4]} 25. Rxd6
{[%clk 0:00:40.7]} 25... Kb8 {[%clk 0:00:53.9]} 26. Nb5 {[%clk 0:00:37.3]} 26...
cxb5 {[%clk 0:00:50.8]} 27. Bxb6 {[%clk 0:00:37.4]} 27... Qc2 {[%clk 0:00:50.8]}
28. axb5 {[%clk 0:00:19.3]} 28... Rc8 {[%clk 0:00:50.7]} 29. Bxa5 {[%clk
0:00:17]} 29... f5 {[%clk 0:00:39.4]} 30. exf5 {[%clk 0:00:10]} 30... gxf5
{[%clk 0:00:40.3]} 31. Qe3 {[%clk 0:00:09.9]} 31... Rhg8+ {[%clk 0:00:30.6]} 32.
Kf1 {[%clk 0:00:09.7]} 32... Rce8 {[%clk 0:00:30.6]} 33. Bb6 {[%clk 0:00:09]}
33... Nf6 {[%clk 0:00:20.9]} 34. Ba7+ {[%clk 0:00:07.4]} 34... Ka8 {[%clk
0:00:20.5]} 35. Ra1 {[%clk 0:00:06.1]} 35... Ng4 {[%clk 0:00:18.9]} 36. Bb8+
{[%clk 0:00:03.6]} 36... Kxb8 {[%clk 0:00:19.8]} 37. Qa7+ {[%clk 0:00:03.6]}
37... Kc7 {[%clk 0:00:20.4]} 38. Rc6+ {[%clk 0:00:03.8]} 38... Kd8 {[%clk
0:00:20.8]} 39. Rxc2 {[%clk 0:00:03.3]} 39... Ke7 {[%clk 0:00:18.7]} 40. Rd1
{[%clk 0:00:03.8]} 40... Kf6 {[%clk 0:00:19.6]} 41. Rc7 {[%clk 0:00:03.8]} 41...
Nh2+ {[%clk 0:00:18.6]} 42. Ke2 {[%clk 0:00:03.8]} 42... f4 {[%clk 0:00:17.1]}
43. Rd6+ {[%clk 0:00:04.2]} 43... Kf5 {[%clk 0:00:16.7]} 44. Qxb7 {[%clk
0:00:04.4]} 44... f3+ {[%clk 0:00:17.6]} 45. Ke3 {[%clk 0:00:04.6]} 45... Ng4+
{[%clk 0:00:17.9]} 46. Kd3 {[%clk 0:00:05.2]} 46... e4+ {[%clk 0:00:18.1]} 47.
Kc4 {[%clk 0:00:05.6]} 47... Ne5+ {[%clk 0:00:17.3]} 48. Kd4 {[%clk 0:00:05.9]}
48... e3 {[%clk 0:00:17.2]} 49. Rc5 {[%clk 0:00:06.4]} 49... e2 {[%clk
0:00:16.6]} 50. Qxf3# {[%clk 0:00:06.8]} 1-0

[Event "*** Titled Tuesday Blitz"]
[Site "Chess.com"]
[Date "2021.04.06"]
[Round "6"]
[White "lagedema"]
[Black "Treacherous_horse64"]
[Result "0-1"]
[WhiteElo "2584"]
[BlackElo "2429"]
[TimeControl "180+1"]
[EndTime "11:08:45 PDT"]
[Termination "Treacherous_horse64 won on time"]

1. d4 {[%clk 0:03:00.9]} 1... d5 {[%clk 0:02:59.6]} 2. c4 {[%clk 0:02:56.2]}
2... e6 {[%clk 0:02:58.7]} 3. Nc3 {[%clk 0:02:56.2]} 3... Nf6 {[%clk 0:02:57.9]}
4. Nf3 {[%clk 0:02:54.1]} 4... Be7 {[%clk 0:02:56.6]} 5. Bf4 {[%clk 0:02:52.7]}
5... O-O {[%clk 0:02:50]} 6. e3 {[%clk 0:02:52.7]} 6... a6 {[%clk 0:02:47.6]} 7.
c5 {[%clk 0:02:49.7]} 7... Nc6 {[%clk 0:02:33.2]} 8. a3 {[%clk 0:02:37.1]} 8...
Ne4 {[%clk 0:02:32.2]} 9. Nxe4 {[%clk 0:02:11.2]} 9... dxe4 {[%clk 0:02:33.1]}
10. Nd2 {[%clk 0:02:11.5]} 10... f5 {[%clk 0:02:33.1]} 11. h4 {[%clk 0:02:03.1]}
11... e5 {[%clk 0:02:18.1]} 12. dxe5 {[%clk 0:01:45.9]} 12... Bxc5 {[%clk
0:02:17.6]} 13. Qc2 {[%clk 0:01:44.7]} 13... Qe7 {[%clk 0:02:13.4]} 14. Bc4+
{[%clk 0:01:34.8]} 14... Kh8 {[%clk 0:02:11.5]} 15. Qc3 {[%clk 0:01:31.8]} 15...
Bb6 {[%clk 0:02:03.2]} 16. Bd5 {[%clk 0:01:25.4]} 16... Be6 {[%clk 0:01:53.5]}
17. Bxc6 {[%clk 0:01:15.1]} 17... bxc6 {[%clk 0:01:54.4]} 18. Qxc6 {[%clk
0:01:12.1]} 18... Rad8 {[%clk 0:01:49.7]} 19. Bg5 {[%clk 0:01:07.7]} 19... Qd7
{[%clk 0:01:39.5]} 20. Qc3 {[%clk 0:01:04.8]} 20... Rde8 {[%clk 0:01:37.9]} 21.
O-O {[%clk 0:00:53.8]} 21... h6 {[%clk 0:01:37.2]} 22. Bf4 {[%clk 0:00:53]}
22... Qe7 {[%clk 0:01:34.4]} 23. Bg3 {[%clk 0:00:51.2]} 23... Rd8 {[%clk
0:01:27.2]} 24. Nc4 {[%clk 0:00:50.2]} 24... Rd3 {[%clk 0:01:25.5]} 25. Qc1
{[%clk 0:00:45.5]} 25... Rfd8 {[%clk 0:01:20.3]} 26. b4 {[%clk 0:00:37.6]} 26...
Ba7 {[%clk 0:01:16.1]} 27. Na5 {[%clk 0:00:36.1]} 27... Qd7 {[%clk 0:01:12.6]}
28. Nc6 {[%clk 0:00:32.7]} 28... Ra8 {[%clk 0:01:12.5]} 29. Nxa7 {[%clk
0:00:26.4]} 29... Rxa7 {[%clk 0:01:13.4]} 30. Qc5 {[%clk 0:00:25.8]} 30... Ra8
{[%clk 0:01:12.7]} 31. Rfc1 {[%clk 0:00:25.9]} 31... Rc8 {[%clk 0:01:07.9]} 32.
Qc6 {[%clk 0:00:25.4]} 32... Rd8 {[%clk 0:00:57]} 33. Qxa6 {[%clk 0:00:21.5]}
33... Bd5 {[%clk 0:00:50.8]} 34. Qg6 {[%clk 0:00:19.3]} 34... c6 {[%clk
0:00:47]} 35. e6 {[%clk 0:00:16.6]} 35... Bxe6 {[%clk 0:00:43.7]} 36. Be5 {[%clk
0:00:15.9]} 36... Kg8 {[%clk 0:00:44.3]} 37. Rxc6 {[%clk 0:00:12.9]} 37... Rd5
{[%clk 0:00:19.9]} 38. Rxe6 {[%clk 0:00:10.7]} 38... Qf7 {[%clk 0:00:18.5]} 39.
Bd4 {[%clk 0:00:07.1]} 39... Qd7 {[%clk 0:00:12.3]} 40. Rc1 {[%clk 0:00:05.2]}
40... f4 {[%clk 0:00:13.2]} 41. Qxe4 {[%clk 0:00:04]} 41... fxe3 {[%clk
0:00:14.1]} 42. fxe3 {[%clk 0:00:03.8]} 42... Rh5 {[%clk 0:00:13.6]} 43. Rcc6
{[%clk 0:00:03.6]} 43... Qf7 {[%clk 0:00:10.5]} 44. Rcd6 {[%clk 0:00:03.3]}
44... Rf8 {[%clk 0:00:10.3]} 0-1

[Event "*** Titled Tuesday Blitz"]
[Site "Chess.com"]
[Date "2021.04.06"]
[Round "6"]
[White "731291"]
[Black "Sanan_Sjugirov"]
[Result "0-1"]
[WhiteElo "2673"]
[BlackElo "2868"]
[TimeControl "180+1"]
[EndTime "11:08:46 PDT"]
[Termination "Sanan_Sjugirov won on time"]

1. e4 {[%clk 0:03:00.9]} 1... c5 {[%clk 0:03:00]} 2. Nc3 {[%clk 0:03:01.8]} 2...
Nc6 {[%clk 0:02:57.8]} 3. Nf3 {[%clk 0:03:02.4]} 3... g6 {[%clk 0:02:49]} 4. h4
{[%clk 0:02:59.3]} 4... Nf6 {[%clk 0:02:46.3]} 5. Bc4 {[%clk 0:02:56.7]} 5... d6
{[%clk 0:02:35.9]} 6. h5 {[%clk 0:02:42.9]} 6... gxh5 {[%clk 0:02:26.9]} 7. d4
{[%clk 0:02:36]} 7... Bg4 {[%clk 0:02:18.5]} 8. dxc5 {[%clk 0:02:35.3]} 8...
dxc5 {[%clk 0:02:14.5]} 9. Qxd8+ {[%clk 0:02:25.2]} 9... Rxd8 {[%clk 0:02:14]}
10. Bg5 {[%clk 0:02:15.9]} 10... Bg7 {[%clk 0:02:08.2]} 11. e5 {[%clk
0:01:55.7]} 11... Nd7 {[%clk 0:02:01.8]} 12. e6 {[%clk 0:01:55.4]} 12... fxe6
{[%clk 0:01:57.1]} 13. O-O-O {[%clk 0:01:36.7]} 13... Nd4 {[%clk 0:01:52.5]} 14.
Nxd4 {[%clk 0:01:32.4]} 14... cxd4 {[%clk 0:01:53.4]} 15. f3 {[%clk 0:01:30.5]}
15... dxc3 {[%clk 0:01:32.6]} 16. fxg4 {[%clk 0:01:29.9]} 16... cxb2+ {[%clk
0:01:33.2]} 17. Kb1 {[%clk 0:01:30.6]} 17... hxg4 {[%clk 0:01:29.7]} 18. Bxe6
{[%clk 0:01:22.3]} 18... Nc5 {[%clk 0:01:26.6]} 19. Rxd8+ {[%clk 0:01:12.9]}
19... Kxd8 {[%clk 0:01:27.5]} 20. Rd1+ {[%clk 0:01:07.6]} 20... Kc7 {[%clk
0:01:23.9]} 21. Bf4+ {[%clk 0:00:58.5]} 21... Kc6 {[%clk 0:01:12.1]} 22. Bd5+
{[%clk 0:00:58]} 22... Kb5 {[%clk 0:01:07.7]} 23. c4+ {[%clk 0:00:32.7]} 23...
Ka6 {[%clk 0:01:07.4]} 24. Kc2 {[%clk 0:00:24.4]} 24... e6 {[%clk 0:00:54.3]}
25. Bxe6 {[%clk 0:00:22.3]} 25... Nxe6 {[%clk 0:00:55.2]} 26. Rd6+ {[%clk
0:00:22.4]} 26... b6 {[%clk 0:00:55.9]} 27. Rxe6 {[%clk 0:00:23.3]} 27... Rd8
{[%clk 0:00:47]} 28. Bd6 {[%clk 0:00:19.9]} 28... Rd7 {[%clk 0:00:38.7]} 29. g3
{[%clk 0:00:19.8]} 29... h5 {[%clk 0:00:37.5]} 30. c5 {[%clk 0:00:14.1]} 30...
Kb7 {[%clk 0:00:27.7]} 31. Be5 {[%clk 0:00:11.5]} 31... Rd2+ {[%clk 0:00:21.7]}
32. Kb1 {[%clk 0:00:04.4]} 32... Bxe5 {[%clk 0:00:19.6]} 33. Rxe5 {[%clk
0:00:04.8]} 33... Rh2 {[%clk 0:00:11.4]} 34. cxb6 {[%clk 0:00:02.7]} 34... axb6
{[%clk 0:00:12.3]} 35. Rg5 {[%clk 0:00:03]} 35... Kc6 {[%clk 0:00:11.8]} 36. a4
{[%clk 0:00:03.1]} 36... Kb7 {[%clk 0:00:06.4]} 37. Ka2 {[%clk 0:00:02.4]} 37...
Ka6 {[%clk 0:00:06.3]} 38. Rb5 {[%clk 0:00:02.4]} 38... Rh3 {[%clk 0:00:05.4]}
39. Kxb2 {[%clk 0:00:01.5]} 39... Rxg3 {[%clk 0:00:05]} 40. Rxh5 {[%clk
0:00:02.1]} 40... Rf3 {[%clk 0:00:05.5]} 41. Rg5 {[%clk 0:00:02.5]} 41... g3
{[%clk 0:00:04.8]} 0-1

[Event "*** Titled Tuesday Blitz"]
[Site "Chess.com"]
[Date "2021.04.06"]
[Round "6"]
[White "campomania3"]
[Black "Shankovskyi"]
[Result "0-1"]
[WhiteElo "2228"]
[BlackElo "2459"]
[TimeControl "180+1"]
[EndTime "11:08:46 PDT"]
[Termination "Shankovskyi won on time"]

1. d4 {[%clk 0:01:55.9]} 1... e6 {[%clk 0:03:00.9]} 2. c4 {[%clk 0:01:55]} 2...
d5 {[%clk 0:03:01.5]} 3. Nc3 {[%clk 0:01:53.7]} 3... Nf6 {[%clk 0:03:01.1]} 4.
cxd5 {[%clk 0:01:53.4]} 4... exd5 {[%clk 0:03:00.6]} 5. Bg5 {[%clk 0:01:53.9]}
5... Be7 {[%clk 0:03:00.2]} 6. Qc2 {[%clk 0:01:54.3]} 6... O-O {[%clk
0:02:58.3]} 7. e3 {[%clk 0:01:54.5]} 7... Nc6 {[%clk 0:02:57]} 8. a3 {[%clk
0:01:52.7]} 8... h6 {[%clk 0:02:50.9]} 9. Bh4 {[%clk 0:01:51.1]} 9... Be6 {[%clk
0:02:46.3]} 10. Bd3 {[%clk 0:01:50.3]} 10... Nh5 {[%clk 0:02:34.3]} 11. Bxe7
{[%clk 0:01:48.8]} 11... Qxe7 {[%clk 0:02:35.2]} 12. Nf3 {[%clk 0:01:48.5]}
12... Nf6 {[%clk 0:02:28.5]} 13. O-O {[%clk 0:01:47.7]} 13... Bg4 {[%clk
0:02:25.3]} 14. Nd2 {[%clk 0:01:46]} 14... a6 {[%clk 0:02:09]} 15. Na4 {[%clk
0:01:43.6]} 15... Qd6 {[%clk 0:01:58.4]} 16. Rac1 {[%clk 0:01:39.4]} 16... Rab8
{[%clk 0:01:57]} 17. Nc5 {[%clk 0:01:38]} 17... Nd7 {[%clk 0:01:43.5]} 18. b4
{[%clk 0:01:27.6]} 18... Nxc5 {[%clk 0:01:28.5]} 19. Qxc5 {[%clk 0:01:26.6]}
19... Qe6 {[%clk 0:01:21.9]} 20. Bxa6 {[%clk 0:01:10.5]} 20... Nxb4 {[%clk
0:01:00.3]} 21. Bb5 {[%clk 0:01:01.9]} 21... Na6 {[%clk 0:00:43.3]} 22. Bxa6
{[%clk 0:00:57.1]} 22... Qxa6 {[%clk 0:00:43.1]} 23. Qxc7 {[%clk 0:00:54.1]}
23... Rbc8 {[%clk 0:00:30.1]} 24. Qg3 {[%clk 0:00:51.7]} 24... Rxc1 {[%clk
0:00:26.9]} 25. Rxc1 {[%clk 0:00:50.9]} 25... Qxa3 {[%clk 0:00:26.9]} 26. Rf1
{[%clk 0:00:37.3]} 26... Be2 {[%clk 0:00:25]} 27. Re1 {[%clk 0:00:33.7]} 27...
Qd3 {[%clk 0:00:24.7]} 28. Nf3 {[%clk 0:00:28.5]} 28... Bxf3 {[%clk 0:00:18.9]}
29. Qxf3 {[%clk 0:00:26.7]} 29... Qe4 {[%clk 0:00:18.3]} 30. Qg3 {[%clk
0:00:25.9]} 30... b5 {[%clk 0:00:17.2]} 31. Qc7 {[%clk 0:00:22.7]} 31... b4
{[%clk 0:00:16.5]} 32. Qb7 {[%clk 0:00:22.5]} 32... b3 {[%clk 0:00:16.3]} 33.
Qxb3 {[%clk 0:00:21]} 33... Re8 {[%clk 0:00:14.4]} 34. h3 {[%clk 0:00:18.1]}
34... Re6 {[%clk 0:00:13.9]} 35. Qb1 {[%clk 0:00:16.2]} 35... Qh4 {[%clk
0:00:10.2]} 36. Qd3 {[%clk 0:00:14.7]} 36... Rg6 {[%clk 0:00:08.7]} 37. Kh2
{[%clk 0:00:11.3]} 37... Qe7 {[%clk 0:00:06.7]} 38. Rc1 {[%clk 0:00:09.8]} 38...
Qd6+ {[%clk 0:00:06.8]} 39. g3 {[%clk 0:00:08.9]} 39... Qf6 {[%clk 0:00:06.4]}
40. Kg2 {[%clk 0:00:08.4]} 40... Qe6 {[%clk 0:00:05.3]} 41. Rc5 {[%clk
0:00:06.4]} 41... Rf6 {[%clk 0:00:05]} 42. h4 {[%clk 0:00:04.4]} 42... Qg4
{[%clk 0:00:04.4]} 43. Qc2 {[%clk 0:00:01.9]} 43... Qf3+ {[%clk 0:00:04.5]} 44.
Kg1 {[%clk 0:00:01.9]} 44... Qg4 {[%clk 0:00:04]} 0-1